bitfinex-derivatives/quotes_BTCF0:USTF0_20260107
["timestamp","ask_amount","ask_price","bid_price","bid_amount"]
[1767795510245,0.09284,91624.0,91612.0,0.010923]
[1767795510945,0.09284,91624.0,91614.0,0.010923]
[1767795511245,0.09284,91624.0,91611.0,0.010924]
[1767795511745,0.09284,91624.0,91608.0,0.010924]
[1767795511952,0.010922,91623.0,91608.0,0.010924]
[1767795512137,0.010923,91621.0,91605.0,0.010924]
[1767795512344,0.09284,91624.0,91604.0,0.02971454]
[1767795512535,0.19051842,91624.0,91601.0,0.09100582]
[1767795512737,0.09767842,91623.0,91609.0,0.010924]
[1767795513139,0.09767842,91634.0,91600.0,0.27180473]
[1767795513350,0.10859942,91632.0,91618.0,0.010923]
[1767795513647,0.09284,91633.0,91601.0,0.010925]
[1767795513648,0.09778651,91631.0,91601.0,0.010925]
[1767795513836,0.09778651,91631.0,91612.0,0.010924]
[1767795514038,0.010922,91626.0,91601.0,0.010925]
[1767795514239,0.10860042,91629.0,91612.0,0.010924]
[1767795514439,0.10860042,91629.0,91613.0,0.010923]
[1767795514949,0.010922,91627.0,91613.0,0.010923]
[1767795515138,0.010922,91628.0,91613.0,0.010923]
[1767795515338,0.09767842,91629.0,91615.0,0.010923]
[1767795515546,0.09767842,91629.0,91617.0,0.010923]
[1767795515843,0.00010809,91631.0,91609.0,0.13001433]
[1767795516037,0.103762,91630.0,91616.0,0.010923]
[1767795516233,0.00010809,91631.0,91614.0,0.03008476]
[1767795516448,0.09284,91630.0,91618.0,0.010923]
[1767795516636,0.00010809,91631.0,91612.0,0.03008476]
[1767795516838,0.09284,91645.0,91633.0,0.010921]
[1767795517147,0.09284,91645.0,91625.0,0.09992957]
[1767795517148,0.09767842,91653.0,91638.0,0.01092]
[1767795517340,0.09767842,91659.0,91639.0,0.03008476]
[1767795517535,0.09767842,91659.0,91636.0,0.09992957]
[1767795517536,0.010918,91656.0,91640.0,0.04100476]
[1767795517743,4.517e-05,91655.0,91636.0,0.11085057]
[1767795517935,4.517e-05,91655.0,91636.0,0.13001433]
[1767795518248,4.517e-05,91655.0,91637.0,0.03008476]
[1767795518447,4.517e-05,91655.0,91641.0,0.01092]
[1767795518749,4.517e-05,91655.0,91637.0,0.13001433]
[1767795518951,4.517e-05,91655.0,91646.0,0.010919]
[1767795519252,0.09288,91659.0,91643.0,0.03008476]
[1767795519460,0.09767842,91665.0,91643.0,0.03008476]
[1767795519646,0.09284,91664.0,91648.0,0.010919]
[1767795519836,0.09284,91663.0,91648.0,0.010919]
[1767795520451,0.09284,91663.0,91643.0,0.09992957]
[1767795520452,0.09284,91663.0,91647.0,0.010919]
[1767795520749,0.10859742,91653.0,91638.0,0.09284]
[1767795520945,0.09767842,91653.0,91638.0,0.09284]
[1767795521152,0.010919,91652.0,91638.0,0.09284]
[1767795521448,0.09767842,91653.0,91638.0,0.09284]
[1767795521649,0.09767842,91653.0,91638.0,0.10376]
[1767795521952,0.09767842,91653.0,91638.0,0.09284]
[1767795522138,0.09767842,91645.0,91626.0,0.010922]
[1767795522345,0.09767842,91642.0,91623.0,0.010922]
[1767795523053,0.09284,91649.0,91611.0,0.03008476]
[1767795523054,0.09767842,91635.0,91611.0,0.03008476]
[1767795523245,0.09767842,91634.0,91620.0,0.010923]
[1767795523752,0.09767842,91634.0,91622.0,0.010922]
[1767795524355,0.09767842,91634.0,91619.0,0.010923]
[1767795524552,0.09767842,91634.0,91621.0,0.00873903]
[1767795525053,0.09767842,91634.0,91612.0,0.09284]
[1767795525240,0.010922,91625.0,91610.0,0.010924]
[1767795525444,0.02912982,91636.0,91591.0,0.010926]
[1767795525445,0.010923,91621.0,91606.0,0.010924]
[1767795525645,0.09767842,91621.0,91595.0,0.03008476]
[1767795525859,0.09767842,91618.0,91604.0,0.010925]
[1767795526155,0.09767842,91618.0,91606.0,0.010924]
[1767795526556,0.09767842,91618.0,91596.0,0.12292476]
[1767795526557,0.09767842,91618.0,91608.0,0.010924]
[1767795526749,0.19051842,91626.0,91612.0,0.010924]
[1767795527148,0.19051842,91626.0,91614.0,0.010923]
[1767795527344,0.19051842,91626.0,91598.0,0.09992957]
[1767795527345,0.010922,91622.0,91607.0,0.010924]
[1767795527652,0.010922,91622.0,91599.0,0.03008476]
[1767795527845,0.09767842,91624.0,91607.0,0.010924]
[1767795528042,0.09767842,91624.0,91609.0,0.010924]
[1767795528245,0.09767842,91624.0,91611.0,0.010924]
[1767795528442,0.010921,91634.0,91618.0,0.010923]
[1767795528648,0.09767842,91622.0,91606.0,0.103764]
[1767795528949,0.09767842,91622.0,91608.0,0.010924]
[1767795529356,0.010922,91629.0,91614.0,0.010923]
[1767795529556,0.09767842,91637.0,91612.0,0.03008476]
[1767795529557,0.010922,91627.0,91612.0,0.03008476]
[1767795529853,0.010922,91627.0,91611.0,0.010924]
[1767795529854,0.10860042,91627.0,91611.0,0.010924]
[1767795530253,0.09767842,91625.0,91608.0,0.010924]
[1767795530854,0.09767842,91625.0,91610.0,0.010924]
[1767795531256,0.09767842,91625.0,91612.0,0.010924]
[1767795531463,0.09767842,91625.0,91606.0,0.09284]
[1767795531958,0.09284,91629.0,91615.0,0.010923]
[1767795532258,0.010922,91627.0,91611.0,0.010924]
[1767795532455,0.010922,91627.0,91613.0,0.010923]
[1767795532655,0.19051842,91629.0,91607.0,0.03008476]
[1767795532858,0.09767842,91629.0,91607.0,0.03008476]
[1767795533261,0.010922,91628.0,91607.0,0.03008476]
[1767795533458,0.010922,91628.0,91613.0,0.010923]
[1767795533759,0.010922,91628.0,91607.0,0.03008476]
[1767795533760,0.010922,91625.0,91609.0,0.010924]
[1767795533962,0.09767842,91629.0,91607.0,0.03008476]
[1767795534153,0.10860042,91629.0,91614.0,0.010923]
[1767795534473,0.010922,91627.0,91613.0,0.010923]
[1767795534666,0.010922,91627.0,91610.0,0.010924]
[1767795534862,0.010922,91627.0,91607.0,0.03008476]
[1767795535062,0.09767842,91629.0,91613.0,0.010923]
[1767795535265,0.010922,91627.0,91613.0,0.010923]
[1767795535562,0.010922,91626.0,91610.0,0.010924]
[1767795535763,0.010922,91624.0,91609.0,0.010924]
[1767795535966,0.09767842,91629.0,91607.0,0.03008476]
[1767795536165,0.010922,91625.0,91611.0,0.010924]
[1767795537463,0.010922,91628.0,91613.0,0.010923]
[1767795537659,0.010922,91626.0,91613.0,0.010923]
[1767795537860,0.09767842,91628.0,91613.0,0.010923]
[1767795538163,0.09767842,91635.0,91613.0,0.03008476]
[1767795538356,0.09288,91634.0,91622.0,0.010922]
[1767795538557,0.09767842,91635.0,91616.0,0.03008476]
[1767795538762,0.09767842,91644.0,91616.0,0.03008476]
[1767795538968,0.01092,91641.0,91619.0,0.03008476]
[1767795539168,0.01092,91640.0,91626.0,0.010922]
[1767795539565,0.09288,91639.0,91620.0,0.03008476]
[1767795539870,0.09288,91646.0,91632.0,0.010921]
[1767795540070,0.01092,91641.0,91624.0,0.09992957]
[1767795540270,0.01092,91644.0,91629.0,0.010922]
[1767795540461,0.01092,91644.0,91624.0,0.09992957]
[1767795540857,0.01092,91642.0,91622.0,0.03008476]
[1767795541063,0.01092,91642.0,91629.0,0.010922]
[1767795541269,0.09606889,91645.0,91623.0,0.010922]
[1767795541270,0.010921,91636.0,91623.0,0.010922]
[1767795541672,0.09606889,91645.0,91617.0,0.19032013]
[1767795541673,0.01092,91641.0,91620.0,0.03130148]
[1767795541979,0.09606889,91645.0,91633.0,0.010921]
[1767795542371,0.09606889,91645.0,91635.0,0.010921]
[1767795542671,0.09284,91646.0,91635.0,0.010921]
[1767795542972,0.010919,91649.0,91635.0,0.010921]
[1767795543174,0.09360322,91653.0,91632.0,0.010921]
[1767795543465,0.10452322,91640.0,91622.0,0.09284]
[1767795543671,0.10452322,91640.0,91626.0,0.010922]
[1767795543866,0.010921,91638.0,91622.0,0.09284]
[1767795544063,0.09360322,91640.0,91625.0,0.010922]
[1767795544371,0.01092,91639.0,91627.0,0.010922]
[1767795544564,0.010921,91636.0,91622.0,0.09284]
[1767795544765,0.10452322,91639.0,91622.0,0.09284]
[1767795544965,0.010921,91637.0,91622.0,0.09284]
[1767795545163,0.010921,91635.0,91622.0,0.09284]
[1767795545472,0.010921,91634.0,91619.0,0.09284]
[1767795545672,0.10452422,91635.0,91619.0,0.09284]
[1767795545862,0.09360322,91626.0,91602.0,0.03130148]
[1767795546062,0.03113744,91627.0,91586.0,0.010927]
[1767795546063,0.10452622,91621.0,91597.0,0.03130148]
[1767795546363,0.09284,91625.0,91607.0,0.010924]
[1767795546759,0.09284,91625.0,91606.0,0.03130148]
[1767795546961,0.10452522,91629.0,91610.0,0.010924]
[1767795547161,0.10452522,91626.0,91607.0,0.010924]
[1767795547665,0.09360322,91623.0,91609.0,0.010924]
[1767795547973,0.09360322,91623.0,91611.0,0.010924]
[1767795548374,0.09360322,91623.0,91609.0,0.010924]
[1767795548571,0.103762,91627.0,91609.0,0.010924]
[1767795548771,0.19736522,91627.0,91609.0,0.010924]
[1767795549275,0.10452522,91625.0,91607.0,0.010924]
[1767795549975,0.010923,91621.0,91602.0,0.03130148]
[1767795550166,0.09360322,91625.0,91606.0,0.010924]
[1767795550367,0.10452522,91623.0,91603.0,0.010925]
[1767795550876,0.10452522,91623.0,91605.0,0.010924]
[1767795551661,0.09360322,91621.0,91603.0,0.010925]
[1767795551872,0.09360322,91608.0,91590.0,0.010926]
[1767795552082,0.21010217,91600.0,91565.0,9.213e-05]
[1767795552373,0.3788,91616.0,91565.0,9.213e-05]
[1767795552374,0.09360322,91588.0,91565.0,9.213e-05]
[1767795552570,0.09284,91599.0,91565.0,9.213e-05]
[1767795552571,0.09360322,91595.0,91565.0,0.12346284]
[1767795552767,0.09288,91594.0,91584.0,0.010927]
[1767795552966,0.010924,91608.0,91581.0,0.03130148]
[1767795553168,0.010925,91603.0,91584.0,0.010927]
[1767795553570,0.10452822,91603.0,91586.0,0.010927]
[1767795553972,0.10452822,91603.0,91582.0,0.010927]
[1767795554276,0.09395423,91593.0,91567.0,0.010929]
[1767795554576,0.09395423,91593.0,91557.0,0.01077934]
[1767795554577,0.09288,91602.0,91587.0,0.010927]
[1767795554766,0.09288,91602.0,91583.0,0.03130148]
[1767795555081,0.09288,91602.0,91589.0,0.010926]
[1767795555375,0.09288,91602.0,91588.0,0.010926]
[1767795555570,0.09288,91602.0,91591.0,0.010926]
[1767795555972,0.09288,91602.0,91588.0,0.010926]
[1767795556575,0.0610076,91624.0,91590.0,0.17896473]
[1767795556576,0.09360322,91610.0,91590.0,0.17896473]
[1767795556777,0.09288,91609.0,91591.0,0.010926]
[1767795557176,0.18648322,91609.0,91591.0,0.010926]
[1767795557373,0.09288,91615.0,91604.0,0.010925]
[1767795557577,0.09288,91615.0,91599.0,0.12337071]
[1767795557578,0.09288,91618.0,91600.0,0.17896473]
[1767795557876,0.103802,91628.0,91603.0,0.03130148]
[1767795558178,0.09288,91628.0,91607.0,0.03130148]
[1767795558470,0.09288,91628.0,91616.0,0.010923]
[1767795559069,0.09360322,91638.0,91611.0,0.03130148]
[1767795559070,0.09288,91636.0,91611.0,0.03130148]
[1767795559266,0.1038,91645.0,91620.0,0.21026621]
[1767795559467,0.09288,91645.0,91625.0,0.010922]
[1767795559664,0.09288,91645.0,91621.0,0.03130148]
[1767795559975,0.09288,91645.0,91615.0,0.010923]
[1767795560174,0.010921,91632.0,91616.0,0.09288]
[1767795560877,0.010921,91631.0,91616.0,0.09288]
[1767795561076,0.010923,91618.0,91598.0,0.04222648]
[1767795561279,0.010923,91618.0,91599.0,0.09288]
[1767795561482,0.00218297,91619.0,91599.0,0.09288]
[1767795561670,0.00218297,91619.0,91600.0,0.010925]
[1767795562382,0.00218297,91619.0,91603.0,0.010925]
[1767795562580,0.00218297,91619.0,91606.0,0.010924]
[1767795562776,0.010922,91627.0,91609.0,0.17896473]
[1767795563075,0.09725805,91626.0,91599.0,0.09288]
[1767795563387,0.09360322,91623.0,91601.0,0.010925]
[1767795564173,0.010923,91620.0,91603.0,0.010925]
[1767795564682,0.10452522,91623.0,91603.0,0.010925]
[1767795565380,0.10452522,91623.0,91605.0,0.010924]
[1767795565881,0.10452522,91623.0,91600.0,0.03130148]
[1767795565882,0.010923,91621.0,91602.0,0.010925]
[1767795566181,0.09360322,91620.0,91604.0,0.010924]
[1767795566775,0.09360322,91627.0,91603.0,0.03130148]
[1767795566978,0.09288,91629.0,91607.0,0.03130148]
[1767795567478,0.09360322,91636.0,91621.0,0.010922]
[1767795567677,0.010918,91658.0,91618.0,0.010923]
[1767795567678,0.09288,91637.0,91618.0,0.010923]
[1767795567986,0.010922,91628.0,91614.0,0.03130148]
[1767795568183,0.010922,91628.0,91612.0,0.09288]
[1767795568590,0.18648322,91637.0,91612.0,0.09288]
[1767795568591,0.09360322,91636.0,91612.0,0.09288]
[1767795568886,0.09360322,91636.0,91614.0,0.010923]
[1767795569084,0.010921,91632.0,91616.0,0.010923]
[1767795569475,0.09360322,91636.0,91613.0,0.12337071]
[1767795569682,0.01092,91641.0,91622.0,0.03130148]
[1767795569987,0.09288,91644.0,91622.0,0.04222348]
[1767795570182,0.01092,91640.0,91621.0,0.09206923]
[1767795570390,0.18648322,91644.0,91621.0,0.09206923]
[1767795570887,0.010921,91637.0,91620.0,0.010923]
[1767795571486,0.09360322,91637.0,91610.0,0.03130148]
[1767795571689,0.09360322,91626.0,91592.0,0.097489]
[1767795571885,0.01092,91640.0,91595.0,0.010926]
[1767795571886,0.010924,91613.0,91595.0,0.010926]
[1767795572187,0.09375013,91612.0,91594.0,0.103806]
[1767795572390,0.09375013,91612.0,91594.0,0.010926]
[1767795572591,0.10467413,91608.0,91588.0,0.010926]
[1767795572783,0.09375013,91602.0,91582.0,0.09288]
[1767795573095,0.09375013,91602.0,91586.0,0.010927]
[1767795573388,0.09375013,91602.0,91589.0,0.00218368]
[1767795575583,0.010925,91601.0,91589.0,0.00218368]
[1767795575780,0.010925,91601.0,91582.0,0.010927]
[1767795575781,0.09375013,91602.0,91581.0,0.09288]
[1767795575982,0.09375013,91599.0,91579.0,0.09288]
[1767795576781,0.09375013,91591.0,91567.0,0.09288]
[1767795576985,0.09375013,91591.0,91572.0,0.010928]
[1767795577583,0.09375013,91591.0,91567.0,0.09288]
[1767795577584,0.09375013,91599.0,91571.0,0.097489]
[1767795577787,0.09288,91598.0,91575.0,0.097489]
[1767795577987,0.010925,91597.0,91577.0,0.010928]
[1767795578196,0.10467513,91597.0,91577.0,0.010928]
[1767795578390,0.010925,91601.0,91580.0,0.010927]
[1767795578589,0.09375013,91604.0,91582.0,0.010927]
[1767795578791,0.09375013,91604.0,91577.0,0.097489]
[1767795578792,0.09375013,91604.0,91584.0,0.010927]
[1767795578990,0.09288,91603.0,91584.0,0.010927]
[1767795579291,0.010925,91599.0,91580.0,0.010927]
[1767795579505,0.010925,91599.0,91576.0,0.010928]
[1767795579506,0.010926,91596.0,91576.0,0.010928]
[1767795579794,0.010926,91596.0,91569.0,0.13077541]
[1767795579795,0.09288,91600.0,91583.0,0.010927]
[1767795579980,0.09288,91600.0,91580.0,0.010927]
[1767795580379,0.09288,91600.0,91582.0,0.010927]
[1767795580990,0.09288,91600.0,91584.0,0.010927]
[1767795581195,0.09288,91604.0,91590.0,0.010926]
[1767795581401,0.010924,91607.0,91587.0,0.010927]
[1767795581582,0.010924,91605.0,91585.0,0.097489]
[1767795581785,0.010924,91605.0,91586.0,0.010927]
[1767795581991,0.09288,91606.0,91583.0,0.010927]
[1767795581992,0.010925,91603.0,91583.0,0.010927]
[1767795582193,0.09288,91606.0,91579.0,0.09288]
[1767795582194,0.09375013,91600.0,91579.0,0.09288]
[1767795582394,0.09375013,91598.0,91579.0,0.103807]
[1767795582695,0.09375013,91598.0,91581.0,0.010927]
[1767795583396,0.09375013,91598.0,91578.0,0.010928]
[1767795583600,0.09375013,91593.0,91559.0,0.0021844]
[1767795583788,0.09375013,91587.0,91563.0,0.09288]
[1767795583987,0.09375013,91587.0,91566.0,0.010929]
[1767795584183,0.09375013,91587.0,91563.0,0.09288]
[1767795584397,0.010924,91613.0,91563.0,0.09288]
[1767795584398,0.09375013,91596.0,91569.0,0.097489]
[1767795584587,0.09288,91595.0,91569.0,0.097489]
[1767795584892,0.09375013,91596.0,91569.0,0.097489]
[1767795585096,0.09288,91595.0,91569.0,0.09605239]
[1767795585299,0.09288,91595.0,91575.0,0.010928]
[1767795585495,0.010926,91593.0,91569.0,0.09605239]
[1767795585691,0.010926,91590.0,91569.0,0.09605239]
[1767795585892,0.09375013,91594.0,91571.0,0.010928]
[1767795586199,0.09375013,91594.0,91563.0,0.103809]
[1767795586200,0.49375013,91594.0,91563.0,0.103809]
[1767795586389,0.09375013,91586.0,91563.0,0.103809]
[1767795586590,0.103807,91585.0,91563.0,0.103809]
[1767795586790,0.19755713,91585.0,91563.0,0.103809]
[1767795586986,0.19255713,91585.0,91563.0,0.103809]
[1767795587201,0.09288,91585.0,91568.0,0.097489]
[1767795587501,0.09288,91585.0,91569.0,0.010929]
[1767795587686,0.5274,91602.0,91571.0,0.097489]
[1767795587687,0.09375013,91601.0,91571.0,0.097489]
[1767795587891,0.008425,91599.0,91574.0,0.14170341]
[1767795588090,0.008425,91599.0,91575.0,0.097489]
[1767795588291,0.09288,91600.0,91575.0,0.097489]
[1767795588494,0.010925,91599.0,91576.0,0.010928]
[1767795588697,0.010925,91599.0,91563.0,0.09288]
[1767795588698,0.010925,91604.0,91577.0,0.097489]
[1767795588895,0.09288,91603.0,91583.0,0.010927]
[1767795589290,0.09288,91603.0,91579.0,0.14170241]
[1767795589694,0.09288,91603.0,91582.0,0.010927]
[1767795589894,0.09288,91605.0,91588.0,0.097489]
[1767795590900,0.09288,91605.0,91587.0,0.010927]
[1767795591197,0.10467413,91611.0,91590.0,0.010926]
[1767795591394,0.09288,91610.0,91590.0,0.010926]
[1767795592497,0.10467413,91611.0,91590.0,0.010926]
[1767795592687,0.09288,91610.0,91590.0,0.010926]
[1767795593095,0.10467413,91607.0,91586.0,0.010927]
[1767795593401,0.010925,91601.0,91585.0,0.09288]
[1767795594192,0.010925,91601.0,91574.0,0.097489]
[1767795594193,0.09375013,91604.0,91579.0,0.010928]
[1767795594394,0.10467613,91594.0,91576.0,0.010928]
[1767795594594,0.09288,91593.0,91568.0,0.010929]
[1767795594795,0.09288,91593.0,91567.0,0.09288]
[1767795595001,0.09375013,91587.0,91564.0,0.060929]
[1767795595203,0.010927,91584.0,91564.0,0.060929]
[1767795595402,0.010927,91581.0,91564.0,0.05]
[1767795595703,0.09375013,91587.0,91564.0,0.060929]
[1767795595704,0.010927,91584.0,91564.0,0.060929]
[1767795595905,0.09375013,91581.0,91546.0,0.03328641]
[1767795596103,0.09375013,91579.0,91547.0,0.09288]
[1767795596310,0.09375013,91579.0,91565.0,0.010929]
[1767795596610,0.09375013,91579.0,91562.0,0.01093]
[1767795597001,0.09382937,91578.0,91558.0,0.01093]
[1767795597407,7.924e-05,91578.0,91553.0,0.03328641]
[1767795597607,7.924e-05,91578.0,91562.0,0.03328641]
[1767795597804,7.924e-05,91578.0,91557.0,0.12616641]
[1767795598005,7.924e-05,91578.0,91563.0,0.010929]
[1767795598215,7.924e-05,91578.0,91565.0,0.010929]
[1767795598704,7.924e-05,91578.0,91567.0,0.010929]
[1767795598914,7.924e-05,91578.0,91571.0,0.010928]
[1767795599209,7.924e-05,91578.0,91568.0,0.010929]
[1767795599606,7.924e-05,91578.0,91558.0,0.13077541]
[1767795600000,7.924e-05,91578.0,91572.0,0.010928]
[1767795600311,0.09288,91582.0,91564.0,0.03328641]
[1767795600604,0.09288,91582.0,91561.0,0.01093]
[1767795601017,0.09288,91582.0,91571.0,0.010928]
[1767795601305,0.09288,91582.0,91561.0,0.01093]
[1767795601306,0.010926,91593.0,91564.0,0.13077541]
[1767795601504,0.09288,91592.0,91579.0,0.010927]
[1767795601700,0.0969333,91603.0,91574.0,0.12801897]
[1767795601909,0.010925,91598.0,91582.0,0.03442597]
[1767795602208,0.0969333,91597.0,91579.0,0.10452]
[1767795602599,0.1078583,91597.0,91579.0,0.093593]
[1767795602800,0.0969333,91597.0,91579.0,0.093593]
[1767795602995,0.0969333,91597.0,91584.0,0.010927]
[1767795603206,0.09292,91607.0,91583.0,0.03442597]
[1767795603404,0.09292,91618.0,91601.0,0.010925]
[1767795603605,0.09292,91618.0,91608.0,0.010924]
[1767795603907,0.80436,91636.0,91598.0,0.12801897]
[1767795603908,0.010922,91623.0,91598.0,0.12801897]
[1767795604292,0.09292,91625.0,91599.0,0.03442597]
[1767795604494,0.010921,91634.0,91606.0,0.093593]
[1767795604793,0.09292,91633.0,91608.0,0.093593]
[1767795604994,0.09288,91632.0,91611.0,0.093593]
[1767795605202,0.0969333,91640.0,91618.0,0.010923]
[1767795605401,0.09288,91639.0,91611.0,0.093593]
[1767795605596,0.0969333,91640.0,91613.0,0.0946183]
[1767795605597,0.010921,91637.0,91613.0,0.0946183]
[1767795605797,0.09980321,91654.0,91617.0,0.12735851]
[1767795606002,0.010921,91636.0,91619.0,0.0946183]
[1767795606195,0.09980321,91652.0,91619.0,0.0946183]
[1767795606196,0.010921,91638.0,91619.0,0.0946183]
[1767795606406,0.008421,91638.0,91619.0,0.0946183]
[1767795606713,0.010921,91635.0,91619.0,0.0946183]
[1767795606908,0.09288,91641.0,91619.0,0.0946183]
[1767795606909,0.010921,91632.0,91619.0,0.0946183]
[1767795607103,0.010922,91627.0,91611.0,0.09288]
[1767795607611,0.010921,91631.0,91611.0,0.09288]
[1767795607812,0.010921,91635.0,91613.0,0.010923]
[1767795608001,0.010921,91635.0,91613.0,0.1055413]
[1767795608202,0.010921,91635.0,91613.0,0.0946183]
[1767795608512,0.010921,91632.0,91613.0,0.0946183]
[1767795608900,0.010922,91628.0,91613.0,0.0946183]
[1767795609101,0.09980321,91640.0,91611.0,0.09288]
[1767795609313,0.09980321,91640.0,91612.0,0.0946183]
[1767795609525,0.01092,91639.0,91618.0,0.010923]
[1767795609814,0.09288,91641.0,91620.0,0.10335762]
[1767795610000,0.09288,91641.0,91622.0,0.010922]
[1767795610197,0.01092,91644.0,91620.0,0.09243462]
[1767795610198,0.09980321,91649.0,91630.0,0.010921]
[1767795610407,0.09980321,91649.0,91616.0,0.010923]
[1767795610408,0.09288,91652.0,91626.0,0.03274021]
[1767795610711,0.010919,91649.0,91626.0,0.04366221]
[1767795610915,0.09980321,91641.0,91608.0,0.03274021]
[1767795611106,0.09980321,91634.0,91609.0,0.09288]
[1767795611303,0.09980321,91634.0,91604.0,0.010925]
[1767795611504,0.010922,91623.0,91605.0,0.09288]
[1767795611704,0.010922,91625.0,91597.0,0.0946183]
[1767795611901,0.09980321,91627.0,91607.0,0.010924]
[1767795612203,0.09980321,91627.0,91609.0,0.010924]
[1767795612406,0.09980321,91627.0,91602.0,0.010925]
[1767795612712,0.010922,91622.0,91604.0,0.010925]
[1767795612907,0.010922,91622.0,91603.0,0.09288]
[1767795613109,0.010923,91616.0,91597.0,0.010925]
[1767795613308,0.010921,91637.0,91596.0,0.09288]
[1767795613309,0.09288,91620.0,91596.0,0.09288]
[1767795613612,0.1038,91639.0,91620.0,0.010923]
[1767795613818,0.09980321,91647.0,91615.0,0.12735851]
[1767795613819,0.09288,91640.0,91625.0,0.010922]
[1767795614118,0.09288,91640.0,91627.0,0.010922]
[1767795614302,0.09288,91640.0,91624.0,0.010922]
[1767795614707,0.09288,91640.0,91618.0,0.0946183]
[1767795615107,0.09288,91640.0,91624.0,0.010922]
[1767795615312,0.09288,91650.0,91638.0,0.01092]
[1767795615512,0.09288,91659.0,91636.0,0.12735851]
[1767795615714,0.09288,91663.0,91640.0,0.0946183]
[1767795616021,0.09288,91664.0,91648.0,0.010919]
[1767795616210,0.09288,91664.0,91640.0,0.0946183]
[1767795616211,0.09288,91664.0,91643.0,0.0946183]
[1767795616407,0.09980321,91679.0,91651.0,0.0946183]
[1767795616612,0.103796,91678.0,91653.0,0.0946183]
[1767795616912,0.09288,91677.0,91653.0,0.0946183]
[1767795617215,0.010916,91673.0,91653.0,0.0946183]
[1767795617622,0.103796,91677.0,91654.0,0.010919]
[1767795618022,0.010916,91672.0,91653.0,0.0946183]
[1767795618411,0.09288,91677.0,91653.0,0.0946183]
[1767795618616,0.010917,91671.0,91653.0,0.0946183]
[1767795618906,0.010917,91672.0,91653.0,0.0946183]
[1767795619107,0.010917,91672.0,91652.0,0.010919]
[1767795619617,0.09288,91677.0,91658.0,0.010918]
[1767795619819,0.09288,91677.0,91658.0,0.1055363]
[1767795620021,0.09288,91679.0,91661.0,0.010918]
[1767795620223,0.09288,91679.0,91654.0,0.010919]
[1767795620416,0.09288,91679.0,91655.0,0.09284]
[1767795620417,0.09980321,91678.0,91655.0,0.09284]
[1767795620614,0.010917,91667.0,91651.0,0.09284]
[1767795620916,0.010917,91669.0,91651.0,0.103759]
[1767795621111,0.010917,91669.0,91651.0,0.09284]
[1767795621518,0.09288,91679.0,91642.0,0.12735851]
[1767795621519,0.09980321,91675.0,91642.0,0.12735851]
[1767795621721,0.09980321,91675.0,91598.0,0.065553]
[1767795621722,0.010917,91665.0,91646.0,0.01092]
[1767795622020,0.010918,91663.0,91647.0,0.09284]
[1767795622514,0.010917,91666.0,91648.0,0.010919]
[1767795622913,0.010918,91664.0,91647.0,0.09284]
[1767795623114,0.09980321,91668.0,91635.0,0.12735851]
[1767795623310,0.09980321,91654.0,91627.0,0.0946183]
[1767795623521,0.01092,91644.0,91628.0,0.09284]
[1767795623712,0.010919,91647.0,91628.0,0.09284]
[1767795624017,0.09980321,91652.0,91628.0,0.09284]
[1767795624226,0.09980321,91649.0,91628.0,0.09284]
[1767795624527,0.4,91653.0,91617.0,0.09284]
[1767795624717,0.103759,91654.0,91617.0,0.09284]
[1767795625108,0.01092,91639.0,91617.0,0.09284]
[1767795625514,0.09284,91643.0,91617.0,0.09284]
[1767795625818,0.09284,91643.0,91623.0,0.010922]
[1767795626022,0.010921,91638.0,91619.0,0.010923]
[1767795626209,0.010921,91638.0,91621.0,0.010922]
[1767795626612,0.010921,91636.0,91618.0,0.010923]
[1767795627518,0.09284,91643.0,91623.0,0.010922]
[1767795627722,0.09284,91643.0,91625.0,0.010922]
[1767795628121,0.010918,91661.0,91631.0,0.0946183]
[1767795628418,0.09980321,91658.0,91631.0,0.0946183]
[1767795628622,0.010919,91648.0,91629.0,0.010922]
[1767795628923,0.09284,91647.0,91629.0,0.010922]
[1767795629124,0.01092,91646.0,91629.0,0.010922]
[1767795629826,0.09980321,91643.0,91618.0,0.0946183]
[1767795630125,0.01092,91643.0,91626.0,0.010922]
[1767795630318,0.01092,91643.0,91623.0,0.010922]
[1767795630524,0.09284,91647.0,91624.0,0.010922]
[1767795630725,0.01092,91641.0,91624.0,0.010922]
[1767795631620,0.11002826,91667.0,91638.0,0.01092]
[1767795631821,0.11002826,91665.0,91647.0,0.010919]
[1767795632020,0.09284,91664.0,91650.0,0.03226672]
[1767795632324,0.09911126,91676.0,91648.0,0.09284]
[1767795632515,0.010917,91669.0,91652.0,0.010919]
[1767795632827,0.09911126,91676.0,91649.0,0.010919]
[1767795633218,0.09911126,91675.0,91646.0,0.09025537]
[1767795633522,0.010918,91660.0,91645.0,0.09284]
[1767795633723,0.09284,91665.0,91642.0,0.01092]
[1767795634025,0.010918,91661.0,91644.0,0.01092]
[1767795634221,0.09284,91665.0,91642.0,0.09025537]
[1767795634427,0.09284,91666.0,91649.0,0.09025537]
[1767795634627,0.09284,91670.0,91652.0,0.09025537]
[1767795634923,0.09284,91675.0,91658.0,0.010918]
[1767795635315,0.09284,91675.0,91654.0,0.09025537]
[1767795635519,0.09284,91675.0,91660.0,0.010918]
[1767795635727,0.010912,91708.0,91673.0,0.010916]
[1767795635912,0.010913,91705.0,91681.0,0.03226672]
[1767795636220,0.17880548,91700.0,91674.0,0.09025537]
[1767795636528,0.010913,91699.0,91676.0,0.010916]
[1767795636724,0.010914,91690.0,91674.0,0.09025537]
[1767795637024,0.09284,91704.0,91671.0,0.18309537]
[1767795637328,0.010914,91690.0,91671.0,0.18309537]
[1767795637525,0.010913,91703.0,91671.0,0.18309537]
[1767795637726,0.08454347,91698.0,91671.0,0.18309537]
[1767795637925,0.09284,91704.0,91677.0,0.09025537]
[1767795638126,0.010913,91702.0,91680.0,0.010915]
[1767795638327,0.010913,91700.0,91680.0,0.010915]
[1767795638530,0.410913,91703.0,91683.0,0.010915]
[1767795638725,0.08672429,91709.0,91683.0,0.010915]
[1767795638726,0.09284,91702.0,91683.0,0.09025537]
[1767795638926,0.09284,91702.0,91684.0,0.09025537]